Cogmind - Beta 10.2 @@@ ROGUE MODE // 2020.11.11 @ 18:34:03 // Halloween2020/ForbiddenLore Player: Ty Piggbottom Result: Self-destructed Performance ------------- Evolutions (2) 1000 Regions Visited (9) 1800 Robots Destroyed (270) 1350 Value Destroyed (7096) 7096 Prototype IDs (35) 700 Alien Tech Used (0) 0 Bonus (2321) 2321 TOTAL SCORE: 14267 Bonus ------- High Alert Combat Kills 1281 Follower Combat Kills 74 Entered Garrisons 200 Used RIF Installer 500 Aligned with FarCom 300 Friendly Fire -34 Cogmind --------- Core Integrity 457/550 Matter 154/300 Energy 73/280 System Corruption 2% Temperature Cool (19) Movement Rolling (100) Ox1 Location -8/Materials Parts ------- > --- POWER (1) -------- Cooled Ion Engine > --- PROPULSION (3) --- Carbon-fiber Leg Armored Wheel > --- UTILITY (4) ------ Lightpack 2.0 Hardlight Generator Hacking Suite > --- WEAPON (3) ------- Precision Beam Rifle > --- INVENTORY (24) --- Light Nuclear Core Light Angular Momentum Engine Carbon-fiber Leg Carbon-fiber Leg Carbon-fiber Leg Titanium Leg Launcher Guidance Computer Recoil Stabilizer Improved Light Armor Plating Hacking Suite Relay Coupler [NC] (26) Relay Coupler [NC] (24) Relay Coupler [Swarmer] (37) Relay Coupler [Grunt] (26) Relay Coupler [Duelist] (27) Relay Coupler [Sentry] (17) Relay Coupler [Demolisher] (17) Relay Coupler [Hunter] (14) PSU Rigger Heavy EM Shotgun Enhanced Autogun Gauss Rifle Bore Cannon Heavy Mace Peak State ------------ > --- POWER ------------ Cooled Ion Engine > --- PROPULSION ------- Improved Treads Advanced Treads Advanced Treads > --- UTILITY ---------- Lightpack 2.0 Recoil Stabilizer PSU Rigger > --- WEAPON ----------- AWS/Thermal Bore Cannon > --- INVENTORY -------- Light Ion Engine Light Ion Engine Carbon-fiber Leg Carbon-fiber Leg Carbon-fiber Leg Carbon-fiber Leg Wheel Wheel Wheel Cooling System High-capacity Storage Unit Compact Battery Improved Signal Interpreter Transport Network Coupler Targeting Computer Launcher Guidance Computer Transmission Jammer Hardened Light Armor Plating Hacking Suite Improved Assault Rifle Improved Assault Rifle Improved Assault Rifle Rocket Launcher Heavy Mace [Rating: 68] Favorites ----------- Power Cooled Ion Engine Engine Cooled Ion Engine Propulsion Wheel Treads Advanced Treads Leg Carbon-fiber Leg Wheel Wheel Utility Lightpack 2.0 Device PSU Rigger Storage Lightpack 2.0 Processor Improved Signal Interpreter Hackware Hacking Suite Protection Hardened Light Armor Plating Weapon Improved Assault Rifle Energy Gun AWS/Thermal Energy Cannon Advanced Beam Cannon Ballistic Gun Improved Assault Rifle Ballistic Cannon Bore Cannon Launcher Rocket Launcher Special Weapon Mining Laser Impact Weapon Heavy Mace Build | -11 -10 -10 -9 -9 -9 -8 -8 -8 -8 ------- Run | Scr Mat Min Mat Min Exi Min Mat Gar Mat Slots Evolved 4 | . . . 2 . . . 2 . . Power . | . . . . . . . . . . Propulsion 1 | . . . . . . . 1 . . Utility 2 | . . . 1 . . . 1 . . Weapon 1 | . . . 1 . . . . . . Parts Attached 270 | 8 31 20 69 11 1 27 84 17 2 Power 9 | 1 2 1 4 . . . 1 . . Engine 9 | 1 2 1 4 . . . 1 . . Core . | . . . . . . . . . . Reactor . | . . . . . . . . . . Propulsion 53 | 2 6 2 11 3 . 1 25 3 . Treads 8 | . . . . . . . 8 . . Leg 4 | . . . . . . . 3 1 . Wheel 41 | 2 6 2 11 3 . 1 14 2 . Hover . | . . . . . . . . . . Flight . | . . . . . . . . . . Utility 55 | 2 4 3 18 1 . 6 15 5 1 Device 18 | . 1 . 5 . . 2 7 2 1 Storage 6 | 2 1 2 . . . 1 . . . Processor 7 | . 2 . 4 . . . . 1 . Hackware 4 | . . . . . . . 4 . . Protection 20 | . . 1 9 1 . 3 4 2 . Artifact . | . . . . . . . . . . Weapon 153 | 3 19 14 36 7 1 20 43 9 1 Energy Gun 14 | 2 5 . . . 1 . 5 . 1 Energy Cannon 6 | . . 3 2 . . . 1 . . Ballistic Gun 54 | 1 6 10 24 3 . . 7 3 . Ballistic Cannon 15 | . . . . 1 . 6 7 1 . Launcher 38 | . 6 1 4 3 . 9 13 2 . Special Weapon 2 | . 2 . . . . . . . . Impact Weapon 24 | . . . 6 . . 5 10 3 . Slashing Weapon . | . . . . . . . . . . Piercing Weapon . | . . . . . . . . . . Special Melee Weapon . | . . . . . . . . . . Unidentified Prototypes 8 | . . . 3 . . . 4 . 1 Parts Lost 13 | . 1 2 3 2 . . . 3 2 Power 1 | . . . 1 . . . . . . Propulsion 5 | . 1 1 . 1 . . . 2 . Utility 3 | . . . 2 1 . . . . . Weapon 4 | . . 1 . . . . . 1 2 Highest Loss Streak 2 | . 1 1 1 1 . . . 2 2 Average Slot Usage (%) 89 | . 97 98 98 98 90 77 80 86 80 Engine 10 | . 14 14 10 11 11 11 8 9 9 Treads 1 | . . . . . . . 5 . . Wheel 22 | . 27 27 22 21 22 22 21 22 9 Device 2 | . 1 . 2 . . 2 2 3 4 Storage 10 | . 12 14 11 11 11 11 9 9 9 Processor 5 | . 11 2 8 11 11 2 . 1 3 Hackware 3 | . . . . . . . 11 9 9 Protection 6 | . . 10 9 9 11 6 3 3 . Energy Gun 4 | . 6 . . . 8 11 8 1 . Ballistic Gun 13 | . 16 25 30 24 4 . 1 6 8 Ballistic Cannon 1 | . . . . 2 11 3 2 . . Launcher 3 | . 2 1 . 5 . 4 3 14 17 Impact Weapon 1 | . . . 1 . . 2 1 3 . Naked Turns . | . . . . . . . . . . Heaviest Build 62 | 15 27 48 55 60 62 62 37 34 32 Greatest Support 67 | 26 26 20 20 20 20 20 67 32 12 Greatest Overweight (x) 5 | . 2 2 4 5 3 3 1 2 2 Average Overweight (x) 1 | . . 1 2 2 2 1 . . 2 Largest Inventory Capacity 24 | 8 10 14 12 12 12 24 24 24 24 Average Capacity 17 | 5 8 10 12 12 12 23 24 24 24 Most Carried 24 | 3 10 10 12 12 12 24 24 24 24 Average Carried 16 | 1 7 9 11 11 10 21 23 23 23 Final Capacity 24 | 6 10 12 12 12 12 24 24 24 24 Final Carried 24 | 2 10 10 12 12 12 24 24 23 24 Class Distribution -------------------- 29% | Hauler-Skirmisher 22% | Mutant 13% | Hauler-Mutant 10% | Tank 10% | Scavenger-Mutant 5% | Scavenger-Tank 4% | Gunner Dominant Class ---------------- Mutant | -10/Materials Scavenger-Mutant | -10/Mines Tank | -9/Materials Mutant | -9/Mines Mutant | -9/Exiles Hauler-Skirmisher | -8/Mines Hauler-Skirmisher | -8/Materials Scavenger-Mutant | -8/Garrison Hauler-Mutant | -8/Materials Resources | -11 -10 -10 -9 -9 -9 -8 -8 -8 -8 ----------- Run | Scr Mat Min Mat Min Exi Min Mat Gar Mat Matter Collected 6980 | 280 544 463 1694 786 . 805 1864 507 37 Remotely 202 | . . . . . . . 202 . . Salvage Created 10238 | 98 581 792 2057 986 . 1178 3564 694 288 Parts 531 | 1 53 33 159 32 . 51 161 28 13 Haulers Intercepted 15 | . 2 . 6 . . . 6 . 1 Recyclers Shooed 13 | . . 4 1 . . 2 6 . . Parts Field Recycled . | . . . . . . . . . . Retrieved Matter . | . . . . . . . . . . Parts Self-Destructed . | . . . . . . . . . . Prevented . | . . . . . . . . . . Kills | -11 -10 -10 -9 -9 -9 -8 -8 -8 -8 ------- Run | Scr Mat Min Mat Min Exi Min Mat Gar Mat Combat Hostiles Destroyed 160 | . 11 3 31 23 . 27 45 17 3 Guns 77 | . 7 3 28 8 . 11 20 . . Cannons 6 | . . . 2 1 . 1 2 . . AOE 74 | . 4 . 1 14 . 15 23 15 2 Classes Destroyed 17 | 1 7 1 1 2 . 2 3 . . Worker 23 | . 6 1 7 1 . 4 3 . 1 Builder 22 | . 5 . 5 . . 4 7 . 1 Tunneler 11 | . 1 2 2 2 . 2 2 . . Hauler 15 | . 2 . 6 . . . 6 . 1 Recycler 35 | 1 . 7 4 10 . 7 6 . . Carrier 1 | . . . . . . . 1 . . Mechanic 2 | . . . . . . . 2 . . Operator 2 | . . . 1 . . . . . 1 Watcher 14 | . 3 . 5 . . . 5 . 1 Swarmer 41 | . 5 . 10 6 . 12 3 5 . Grunt 68 | . 6 1 12 1 . 11 28 7 2 Brawler 5 | . . . . . . . 3 2 . Duelist 4 | . . . . . . 1 2 1 . Sentry 21 | . . 2 9 . . . 9 . 1 Demolisher 1 | . . . . 1 . . . . . Hunter 5 | . . . . . . 3 . 2 . Assembled 15 | . . . . 15 . . . . . Best Kill Streak 13 | 1 9 7 8 13 . 12 10 6 4 Combat Bots Only 10 | . 3 3 4 10 . 8 4 6 1 Max Kills in Single Turn 5 | 1 3 2 2 5 . 3 4 4 1 Gunslinging 1 | . . . 1 . . . . . . Exploded 4 | . 1 . 1 3 . 2 3 4 1 Melee . | . . . . . . . . . . Uniques/NPCs Destroyed . | . . . . . . . . . . Combat | -11 -10 -10 -9 -9 -9 -8 -8 -8 -8 -------- Run | Scr Mat Min Mat Min Exi Min Mat Gar Mat Damage Taken 3636 | . 356 316 1032 616 . 257 696 267 96 Core 519 | . 110 46 117 112 . 41 55 23 15 Absorbed by Shields 18 | . . . . . . . . . 18 Core Remaining (%) 56 | 100 . 37 . . . 32 . . . Volleys Fired 583 | 6 66 32 118 67 . 53 173 48 20 Largest 3 | 2 2 2 3 3 . 1 1 2 2 Hottest 114 | 80 100 79 114 103 . 57 57 69 97 Shots Fired 1128 | 12 114 62 341 167 . 90 260 56 26 Gun 795 | 12 89 59 317 145 . 37 116 11 9 Cannon 131 | . . 2 17 6 . 22 84 . . Launcher 192 | . 15 1 7 16 . 31 60 45 17 Special 10 | . 10 . . . . . . . . Kinetic 713 | . 39 59 317 151 . 22 113 4 8 Thermal 159 | . 10 . 17 . . 37 87 7 1 Explosive 96 | . 15 1 7 16 . 31 4 17 5 Electromagnetic 160 | 12 50 2 . . . . 56 28 12 Robot Hit Streak 18 | 6 10 8 18 8 . 7 15 9 5 Robot Miss Streak 12 | 1 5 4 6 5 . 8 12 1 3 Penetration Max 1 | . . . . . . . 1 . . Secondary Targets 5 | . . 2 2 1 . . . . . Max Gunslinging Chain 1 | . . 1 1 1 . . . . . Autonomous 131 | . . . . . . 37 87 7 . Shots Hit Robots 607 | 9 54 36 186 86 . 54 158 17 7 Core Hits 366 | 2 39 18 79 54 . 47 95 18 14 Critical Hits 28 | . . . 3 4 . 2 19 . . Critical Kills 9 | . . . 1 1 . 2 5 . . Critical Parts Destroyed 18 | . . . 2 2 . . 14 . . Melee Attacks 67 | . . . 6 . . 15 40 6 . Impact 67 | . . . 6 . . 15 40 6 . Slashing . | . . . . . . . . . . Piercing . | . . . . . . . . . . Sneak Attacks 18 | . . . . . . 10 8 . . Combat Hostiles . | . . . . . . . . . . Follow-up Attacks . | . . . . . . . . . . Damage Inflicted 19892 | 102 1480 660 2883 2072 . 3559 6981 1252 903 Guns 8713 | 102 724 595 2535 1025 . 813 2745 141 33 Cannons 1113 | . . 25 207 51 . 136 694 . . Explosions 8264 | . 756 40 141 996 . 1609 2741 1111 870 Melee 1802 | . . . . . . 1001 801 . . Ramming . | . . . . . . . . . . Kinetic 5706 | . 305 595 2535 1076 . 136 1026 . 33 Thermal 4504 | . 193 . 207 . . 882 3081 141 . Explosive 4041 | . 563 40 141 996 . 1540 263 122 376 Electromagnetic 3839 | 102 419 25 . . . . 1810 989 494 Impact 1802 | . . . . . . 1001 801 . . Slashing . | . . . . . . . . . . Piercing . | . . . . . . . . . . Highest Corruption 2 | . . . . . . . 1 2 2 Average Corruption 1 | . . . . . . . 1 1 2 Corruption Purged . | . . . . . . . . . . Effects 8 | . . . . . . . 1 5 2 Message Errors 2 | . . . . . . . . . 2 Heat Flow Errors 1 | . . . . . . . . 1 . Energy Discharges 2 | . . . . . . . 1 1 . Data Loss (minor) 2 | . . . . . . . . 2 . Targeting Errors 1 | . . . . . . . . 1 . Overload Shots . | . . . . . . . . . . Overflow Damage 1470 | . 82 . . 41 . 666 557 22 102 Projectiles . | . . . . . . . . . . Explosions 528 | . 82 . . 41 . 72 209 22 102 Melee 942 | . . . . . . 594 348 . . Knockbacks 20 | . . . . 1 . 9 10 . . Impact 10 | . . . . . . 7 3 . . Kinetic 8 | . . . . 1 . 1 6 . . Secondary 2 | . . . . . . 1 1 . . Self-Inflicted Damage 476 | . 66 . 17 40 . 4 149 173 27 Shots 25 | . 5 . 1 1 . 1 9 7 1 Rammed . | . . . . . . . . . . Targets Rammed . | . . . . . . . . . . Kicked . | . . . . . . . . . . Crushed . | . . . . . . . . . . Highest Temperature 268 | 108 90 66 268 158 . 32 90 98 19 Average Temperature 36 | 55 23 24 69 27 . 10 22 45 10 Received Heat Transfer 1143 | . 90 117 300 282 . 63 234 36 21 Effects 1 | . . . 1 . . . . . . Interference 1 | . . . 1 . . . . . . Siege Activations . | . . . . . . . . . . Robots Corrupted 3 | . . . . . . . . 2 1 Combat Hostiles 3 | . . . . . . . . 2 1 Parts Fried 47 | . 2 . . . . 13 21 7 4 Impact Corruptions 33 | . . . . . . 24 9 . . Robots Melted . | . . . . . . . . . . Combat Hostiles . | . . . . . . . . . . Parts Melted 8 | . . . 1 1 . . 6 . . Heat Transferred 5614 | . 300 . 370 . . 1149 3610 185 . Parts Sabotaged . | . . . . . . . . . . Parts Stolen . | . . . . . . . . . . Parts Stripped . | . . . . . . . . . . Power Chain Reactions 15 | . 4 . . . . . 7 4 . Missiles Intercepted . | . . . . . . . . . . Alert | -11 -10 -10 -9 -9 -9 -8 -8 -8 -8 ------- Run | Scr Mat Min Mat Min Exi Min Mat Gar Mat Peak Influence 1777 | 5 318 110 593 452 . 498 1239 1777 1210 Initial 865 | . 3 . . 212 . . 169 805 865 Average 467 | 1 143 31 391 234 . 339 530 1466 1010 Maximum Alert Level 5 | . 1 . 2 2 . 2 4 5 4 Low Security (%) 25 | 100 79 100 19 36 . 9 5 . . Level 1 27 | . 20 . 28 41 . 63 25 . . Level 2 30 | . . . 52 22 . 27 49 . . Level 3 5 | . . . . . . . 16 8 73 Level 4 6 | . . . . . . . 3 57 26 Level 5 3 | . . . . . . . . 34 . High Security . | . . . . . . . . . . Max Security . | . . . . . . . . . . Squads Dispatched 13 | . . . 3 . . . 9 . 1 Investigation 2 | . . . 1 . . . . . 1 Extermination . | . . . . . . . . . . Reinforcement 7 | . . . 2 . . . 5 . . Assault 2 | . . . . . . . 2 . . Garrison 2 | . . . . . . . 2 . . Intercept . | . . . . . . . . . . Construction Impeded 4 | . . . . . . . 4 . . Haulers Reinforced . | . . . . . . . . . . Stealth | -11 -10 -10 -9 -9 -9 -8 -8 -8 -8 --------- Run | Scr Mat Min Mat Min Exi Min Mat Gar Mat Distress Signals 11 | . 2 . 1 . . . 7 . 1 Communications Jammed . | . . . . . . . . . . Distress Signals . | . . . . . . . . . . Times Spotted 185 | . 17 3 49 25 . 18 51 14 8 Peak Tracking Total 8 | . 3 3 6 7 . 3 5 8 3 Tactical Retreats 18 | . . . 3 . . 1 8 4 2 Traps | -11 -10 -10 -9 -9 -9 -8 -8 -8 -8 ------- Run | Scr Mat Min Mat Min Exi Min Mat Gar Mat Traps Triggered 19 | . 2 . 5 . . . 3 8 1 Indirectly 7 | . . . . . . . 3 3 1 Trap Hack Attempts . | . . . . . . . . . . Triggered . | . . . . . . . . . . Disarmed 6 | . . . 6 . . . . . . Reprogrammed . | . . . . . . . . . . Reused . | . . . . . . . . . . Traps Extracted . | . . . . . . . . . . Installed . | . . . . . . . . . . Triggered . | . . . . . . . . . . Power Sources Rigged 18 | . . . . . . 6 5 7 . Exploded 14 | . . . . . . 6 3 5 . Machines | -11 -10 -10 -9 -9 -9 -8 -8 -8 -8 ---------- Run | Scr Mat Min Mat Min Exi Min Mat Gar Mat Machines Disabled 43 | . 3 1 5 1 . 2 16 6 9 Max in Single Turn 3 | . 1 1 2 1 . 1 2 1 3 Garrison Relay 4 | . . . . . . . . 4 . Machines Sabotaged . | . . . . . . . . . . Garrisons Compromised . | . . . . . . . . . . Overloaded Fab Kills . | . . . . . . . . . . Fab Network Shutdowns . | . . . . . . . . . . Hacking | -11 -10 -10 -9 -9 -9 -8 -8 -8 -8 --------- Run | Scr Mat Min Mat Min Exi Min Mat Gar Mat Machines Accessed 37 | . 7 1 12 1 5 . 11 . . Terminals 26 | . 7 1 8 1 . . 9 . . Fabricators . | . . . . . . . . . . Repair Stations 2 | . . . 1 . . . 1 . . Recycling Units 2 | . . . 2 . . . . . . Scanalyzers 1 | . . . 1 . . . . . . Garrison Access 1 | . . . . . . . 1 . . Total Hacks 153 | . 16 1 39 2 50 . 45 . . Successful 115 | . 10 1 28 1 50 . 25 . . Failed 38 | . 6 . 11 1 . . 20 . . Catastrophic 2 | . . . . . . . 2 . . Database Lockouts . | . . . . . . . . . . Manual 71 | . 10 2 28 . 1 . 30 . . Terminals 85 | . 16 1 26 2 . . 40 . . Fabricators . | . . . . . . . . . . Repair Stations 8 | . . . 4 . . . 4 . . Recycling Units 4 | . . . 4 . . . . . . Scanalyzers 5 | . . . 5 . . . . . . Garrison Access 1 | . . . . . . . 1 . . Terminal Hacks 83 | . 5 1 10 1 50 . 16 . . Record 49 | . . . . . 49 . . . . Robot Analysis 5 | . 1 1 2 . . . 1 . . Prototype ID Bank 3 | . 1 . 1 . . . 1 . . Level Access Points 1 | . . . . . . . 1 . . Branch Access Points 1 | . . . . . . . 1 . . Terminal Index 3 | . 1 . 1 . . . 1 . . Repair Station Index 1 | . . . . . . . 1 . . Scanalyzer Index 2 | . . . . . . . 2 . . Alert Level 1 | . . . . . . . 1 . . Unreport Threat 3 | . . . 1 . . . 2 . . Locate Traps 4 | . 1 . 1 . . . 2 . . Disarm Traps 1 | . . . 1 . . . . . . Security Status 1 | . . . . . . . 1 . . Transport Status 1 | . . . 1 . . . . . . Investigation Status 1 | . . . . . . . 1 . . Registered Components 1 | . . . 1 . . . . . . Zone Layout 4 | . 1 . 1 1 . . 1 . . EX-Prototype ID Bank 1 | . . . . . 1 . . . . Fabricator Hacks . | . . . . . . . . . . Repair Station Hacks 8 | . . . 4 . . . 4 . . Scan Component 4 | . . . 2 . . . 2 . . Repair 4 | . . . 2 . . . 2 . . Recycling Unit Hacks 1 | . . . 1 . . . . . . Report Inventory 1 | . . . 1 . . . . . . Scanalyzer 5 | . . . 5 . . . . . . Insert Component 3 | . . . 3 . . . . . . Analyze 2 | . . . 2 . . . . . . Garrison Access Hacks 1 | . . . . . . . 1 . . Unlock Access 1 | . . . . . . . 1 . . Unauthorized Hacks 17 | . 5 . 8 . . . 4 . . Terminals 15 | . 5 . 6 . . . 4 . . Assimilate 2 | . 1 . . . . . 1 . . Botnet 13 | . 4 . 6 . . . 3 . . Fabricators . | . . . . . . . . . . Repair Stations . | . . . . . . . . . . Recycling Units 2 | . . . 2 . . . . . . Reject 1 | . . . 1 . . . . . . Mask 1 | . . . 1 . . . . . . Scanalyzers . | . . . . . . . . . . Garrison Access . | . . . . . . . . . . Data Cores Recovered . | . . . . . . . . . . Used . | . . . . . . . . . . Hacking Detections 29 | . 6 1 11 1 . . 10 . . Full Trace Events 1 | . . . 1 . . . . . . Feedback Events . | . . . . . . . . . . Feedback Blocked . | . . . . . . . . . . Robot Schematics Acquired . | . . . . . . . . . . Robots Built . | . . . . . . . . . . Matter . | . . . . . . . . . . Time . | . . . . . . . . . . Total Robot Build Rating . | . . . . . . . . . . Part Schematics Acquired 2 | . . . 2 . . . . . . Parts Built . | . . . . . . . . . . Matter . | . . . . . . . . . . Time . | . . . . . . . . . . Total Part Build Rating . | . . . . . . . . . . Parts Repaired 4 | . . . 2 . . . 2 . . Time 146 | . . . 102 . . . 44 . . Parts Recycled . | . . . . . . . . . . Recycled Matter . | . . . . . . . . . . Retrieved Matter . | . . . . . . . . . . Retrieved Components . | . . . . . . . . . . Parts Scanalyzed 2 | . . . 2 . . . . . . Part Schematics Acquired 2 | . . . 2 . . . . . . Parts Damaged . | . . . . . . . . . . Bothacking | -11 -10 -10 -9 -9 -9 -8 -8 -8 -8 ------------ Run | Scr Mat Min Mat Min Exi Min Mat Gar Mat Used RIF Installer 1 | . . . . . . . . 1 . Robots Hacked . | . . . . . . . . . . Non-combat . | . . . . . . . . . . Combat . | . . . . . . . . . . Robot Hacks Applied . | . . . . . . . . . . Relay Couplers Released 17 | . . . . . . . . 17 . Machine Destruction 17 | . . . . . . . . 17 . Robots Rewired 1 | . 1 . . . . . . . . Allies Hacked . | . . . . . . . . . . Hacks Repelled . | . . . . . . . . . . Allies | -11 -10 -10 -9 -9 -9 -8 -8 -8 -8 -------- Run | Scr Mat Min Mat Min Exi Min Mat Gar Mat Total Allies 9 | . 2 1 . 6 . . . . . Largest Group 8 | . 2 3 2 8 2 2 . . . Highest-Rated Group 127 | . 16 47 16 127 19 19 . . . Highest-Rated Ally 31 | . 10 31 10 31 10 10 . . . Total Orders 28 | . 6 2 5 2 10 3 . . . STAY 7 | . 1 1 1 1 1 2 . . . FOLLOW 8 | . 1 1 2 1 3 . . . . DROP 5 | . 1 . . . 3 1 . . . PICKUP 3 | . 2 . 1 . . . . . . COLLECT 5 | . 1 . 1 . 3 . . . . Ally Attacks 45 | . . . . 45 . . . . . Total Damage 465 | . . . . 465 . . . . . Kills 4 | . . . . 4 . . . . . Allies Corrupted . | . . . . . . . . . . Allies Melted . | . . . . . . . . . . Intel | -11 -10 -10 -9 -9 -9 -8 -8 -8 -8 ------- Run | Scr Mat Min Mat Min Exi Min Mat Gar Mat Robot Analysis Total 5 | . 1 1 2 . . . 1 . . Derelict Logs Recovered 4 | . . 3 . 1 . . . . . Drone Launches . | . . . . . . . . . . Drone Recoveries . | . . . . . . . . . . Exploration | -11 -10 -10 -9 -9 -9 -8 -8 -8 -8 ------------- Run | Scr Mat Min Mat Min Exi Min Mat Gar Mat Turns Passed 13322 | 66 1235 874 2737 1181 844 1856 3112 1233 184 Spaces Moved 10302 | 36 1008 756 1808 911 714 1581 2268 1099 121 Core 1 | 1 . . . . . . . . . Treads 282 | . . . . . . . 282 . . Legs 8 | . . . . . . . 8 . . Wheels 10011 | 35 1008 756 1808 911 714 1581 1978 1099 121 Hover . | . . . . . . . . . . Flight . | . . . . . . . . . . Fastest Speed 50 | 50 80 80 100 100 100 90 80 83 110 Average Speed 95 | 91 89 95 100 100 107 90 93 88 110 Slowest Speed 153 | 100 100 100 120 130 110 110 153 110 110 Overloaded Moves . | . . . . . . . . . . Propulsion Burnouts . | . . . . . . . . . . Robots Hopped . | . . . . . . . . . . Cave-ins Triggered . | . . . . . . . . . . Exploration Rate (%) 77 | 4 96 99 96 98 92 100 80 91 17 Regions Visited 9 Branch Regions 4 Pre-discovered Areas 2 | . . 1 . . 1 . . . . Known Exits Taken 6 | . . 1 1 1 1 1 1 . . Unknown Exits Taken 2 | 1 1 . . . . . . . . Scrap Searched 3 | . . 1 . 1 . 1 . . . Spaces Dug 265 | . 28 . 30 40 . 47 49 71 . Terrain Destroyed 1053 | . 96 10 61 116 . 313 213 163 81 Melee 32 | . . . 6 . . 1 25 . . Projectile 89 | . 10 . . 5 . 19 55 . . AOE 932 | . 86 10 55 111 . 293 133 163 81 Terrain Rammed . | . . . . . . . . . . Walls Destroyed . | . . . . . . . . . . Machines Disabled . | . . . . . . . . . . Actions | -11 -10 -10 -9 -9 -9 -8 -8 -8 -8 --------- Run | Scr Mat Min Mat Min Exi Min Mat Gar Mat Total 12825 | 53 1209 858 2462 1042 798 1922 3037 1299 145 Wait 1131 | . 70 27 392 45 58 192 315 32 . Move 10292 | 35 1007 755 1807 910 713 1580 2267 1097 121 Hop . | . . . . . . . . . . Pick Up 195 | 2 15 8 28 4 12 33 70 22 1 Fast Attach 37 | 7 5 3 15 1 1 . 4 . 1 Attach 30 | . 1 3 8 1 . 2 9 6 . Detach 22 | 1 2 2 4 . . 2 8 2 1 Swap 203 | 1 25 14 46 9 . 25 71 11 1 Drop 195 | 1 15 14 38 5 14 14 75 19 . Fire 583 | 6 66 32 118 67 . 53 173 48 20 Melee 67 | . . . 6 . . 15 40 6 . Ram . | . . . . . . . . . . Kick . | . . . . . . . . . . Crush . | . . . . . . . . . . Escape Stasis 49 | . . . . . . . . 49 . Rewire 3 | . 3 . . . . . . . . Trap 18 | . . . . . . 6 5 7 . Miscellaneous . | . . . . . . . . . . Route ------- -11/Scrapyard -10/Materials (discovered 4 exits: *Mat x3 / *Min) -10/Mines (discovered 2 exits: *Mat x2) -9/Materials (discovered 6 exits: *Mat x3 / *Min / *Sto x2) -9/Mines (discovered 3 exits: *Mat x2 / *Exi) -9/Exiles -8/Mines (discovered 2 exits: *Mat x2) -8/Materials (discovered 4 exits: *Fac x3 / Gar) -8/Garrison (discovered 3 exits: *Mat x3) -8/Materials History --------- Turn | Location | Event 13 | -11/Scrapyard | Discovered new exit (range 16) 67 | -11/Scrapyard | Entered Materials 306 | -10/Materials | Build established: Mutant 450 | -10/Materials | Discovered new exit (range 16) 485 | -10/Materials | Identified exit to Materials 692 | -10/Materials | Discovered exit to Materials (range 11) 992 | -10/Materials | Discovered exit to Materials (range 16) 1082 | -10/Materials | Discovered new exit (range 16) 1302 | -10/Materials | Entered Mines 1302 | -10/Mines | Accompanied by 2 allies 1309 | -10/Mines | Met a Derelict bent on vengeance 1403 | -10/Mines | Discovered exit to Materials (range 5) 1450 | -10/Mines | Core integrity fell below 50% 1625 | -10/Mines | Learned Materials stockpile data 1694 | -10/Mines | Discovered exit to Materials (range 5) 1772 | -10/Mines | Build established: Scavenger-Mutant 1776 | -10/Mines | Learned location of Zion (-7) 1868 | -10/Mines | Received a Mining Laser from a helpful Derelict 1896 | -10/Mines | Learned 2 Materials zone layouts 2176 | -10/Mines | Entered Materials 2176 | -9/Materials | Accompanied by 2 allies 2176 | -9/Materials | Evolved 2 slots: Utility x1, Weapon x1 2370 | -9/Materials | Discovered new exit (range 16) 2521 | -9/Materials | Build established: Scavenger-Tank 2882 | -9/Materials | Discovered new exit (range 16) 2917 | -9/Materials | Identified exit to Materials 3228 | -9/Materials | Discovered new exit (range 8) 3515 | -9/Materials | Discovered new exit (range 8) 3618 | -9/Materials | Identified exit to Storage 3759 | -9/Materials | Discovered exit to Materials (range 15) 3840 | -9/Materials | Build established: Gunner 4255 | -9/Materials | Discovered exit to Materials (range 10) 4612 | -9/Materials | Repaired Imp. Assault Rifle 4637 | -9/Materials | Build established: Tank 4663 | -9/Materials | Repaired Imp. Assault Rifle 4904 | -9/Materials | Identified exit to Mines 4913 | -9/Materials | Entered Mines 4913 | -9/Mines | Accompanied by 2 allies 5008 | -9/Mines | Build established: Mutant 5031 | -9/Mines | Discovered exit to Materials (range 9) 5083 | -9/Mines | Discovered exit to Materials (range 13) 5095 | -9/Mines | Assisted by bots powering up and referring to "LRC-V3" 5124 | -9/Mines | Deemed a non-threat by the Exiles lab entrance 5124 | -9/Mines | Discovered new exit (range 5) 5127 | -9/Mines | Identified exit to Exiles 5249 | -9/Mines | Assembled infested the area 5250 | -9/Mines | Met a Derelict testing a Signal Generator 5254 | -9/Mines | Assisted by a Guerilla fighting off Assembled 5345 | -9/Mines | Destroyed 10 combat bots 5363 | -9/Mines | Core integrity fell below 50% 5856 | -9/Mines | A weapon hastily lodged in a ceiling crevice suddenly fell to the ground 6094 | -9/Mines | Entered Exiles 6094 | -9/Exiles | Accompanied by 2 allies 6119 | -9/Exiles | Met 8R-AWN 6135 | -9/Exiles | Met EX-HEX 6171 | -9/Exiles | Met EX-BIN 6184 | -9/Exiles | Build established: Tank 6201 | -9/Exiles | Aligned with FarCom system 6202 | -9/Exiles | Given EX-Vault access code 6249 | -9/Exiles | Opened EX-Vault 6268 | -9/Exiles | Found AWS/Thermal 6437 | -9/Exiles | Warned to stay clear of 0b10 Research branches 6574 | -9/Exiles | Build established: Mutant 6635 | -9/Exiles | Met EX-DEC 6656 | -9/Exiles | Visited The Gauntlet 6925 | -9/Exiles | Discovered new exit (range 11) 6935 | -9/Exiles | Identified exit to Mines 6938 | -9/Exiles | Stole three prototypes: AWS/Thermal, PSU Rigger, Lightpack 2.0 6938 | -9/Exiles | Entered Mines 6938 | -8/Mines | Accompanied by 2 allies 6970 | -8/Mines | Found Lightpack 2.0 6990 | -8/Mines | Found PSU Rigger 7057 | -8/Mines | Discovered exit to Materials (range 4) 7131 | -8/Mines | Destroyed 8 combat bots 7280 | -8/Mines | Discovered exit to Materials (range 15) 7389 | -8/Mines | Build established: Hauler-Skirmisher 8794 | -8/Mines | Entered Materials 8794 | -8/Materials | Evolved 2 slots: Propulsion x1, Utility x1 9918 | -8/Materials | Discovered new exit (range 15) 10600 | -8/Materials | Repaired Cld. Ion Engine 10677 | -8/Materials | Repaired Recoil Stabilizer 10794 | -8/Materials | First assault squad dispatched 11314 | -8/Materials | Discovered new exit (range 3) 11427 | -8/Materials | Identified exit to Factory 11754 | -8/Materials | Garrison activated, responded to threat 11888 | -8/Materials | Garrison activated, responded to threat 11905 | -8/Materials | Identified exit to Garrison 11906 | -8/Materials | Entered Garrison 11933 | -8/Garrison | Triggered checkpoint 11993 | -8/Garrison | Triggered checkpoint 12128 | -8/Garrison | Triggered checkpoint 12216 | -8/Garrison | Garrison Relay disabled 12330 | -8/Garrison | Discovered new exit (range 10) 12358 | -8/Garrison | Triggered checkpoint 12399 | -8/Garrison | Garrison Relay disabled 12437 | -8/Garrison | Build established: Scavenger-Mutant 12528 | -8/Garrison | Triggered checkpoint 12569 | -8/Garrison | Discovered new exit (range 15) 12647 | -8/Garrison | Triggered checkpoint 12726 | -8/Garrison | Garrison Relay disabled 12814 | -8/Garrison | Discovered new exit (range 14) 12835 | -8/Garrison | Installed Relay Interface Framework 12864 | -8/Garrison | Triggered checkpoint 12951 | -8/Garrison | Garrison Relay disabled 13007 | -8/Garrison | Identified exit to Materials 13139 | -8/Garrison | Entered Materials 13159 | -8/Materials | Build established: Hauler-Mutant 13323 | -8/Materials | Self-destructed Last Messages --------------- 13299_ K-01 Serf collects debris. 13299_ K-01 Serf cleans the Matter Pump. 13300_ U-05 Engineer lays Concrete. 13302_ K-01 Serf collects debris. 13302_ Alarm Trap short circuited. 13302_ An alarm sounds. 13302_ ALERT: Alarm triggered, dispatching investigation squad. 13302_ M-28 Smith sends out distress signal. 13303_ K-01 Serf collects debris. 13305_ Destroyed Wheel. 13307_ K-01 Serf collects debris. 13308_ Destroyed Wheel. 13310_ K-01 Serf collects debris. 13313_ K-01 Serf cleans the Matter Pump. 13314_ Acquired Prototype Energy Gun. 13316_ Identified Prc. Beam Rifle. 13318_ Acquired 37 matter. 13319_ Rocket Launcher destroyed. 13320_ Adv. EMP Blaster destroyed. 13320_ Destroyed Adv. EMP Blaster. Map ----- +----------------------------------------------------+ | ?????????????????????????????????????# #??? | | ?????????????????????????????????##### """ #??? | | ?????????????????????????????????# # """ #??? | | ?????????????????????????????????# # """ #??? | | ????????????????????????########## #?? ????? | | ????????????????????????# #####+##????? | | ????????????????? ####?? | | ????????????????? #?? | | ????????????????? ##+### | | ??????????????????#+##### """ """ """ # | | ????????????????????????## """ """ """ # ][ | | ?????????????o???????????# """ """ """ # [[ | | ???????????o?????????????# # [ | | ?????????????????????????# # | | ?????????????????????????# """ """ """ # | | ?????????????????????????# """ """ """ #+#### | | ?????????????????????????# """ """ """ #??? | | ????????????????????????## #??? | | ????????????????????????+ #??? | | ?????????????????????????# """ """ """ #??? | | ??????????????#???????????# """ """ """ #### | | ?????????????## ?????#???# "%" %"" # | | ???????????# # ???# ??# # | | ?????????? ## ### # | | ?????????? [ |! %[ # | | ??????????[ =%! %@ + | | ?????????? ! [ % # | | ?????????? # ##########+########### | | ???????????# # # ??# ???????# = #???# | | ???????????????#?????# ???????# #???# | | ?????????????????????# ???????# !! " #???#### | | ?????????????????????# ????????# ! " #??????? | | ?????????????????????# ????????# ! """ #??????? | | ?????????????????????# ????????# """ #??????? | | ?????????????????????# ????????# ! """ #??????? | | ?????????????????????# ?????????# #??????? | | ?????????????????????#Y?????????#####+#####??????? | | ????????????g???????? ??????######## ##?????????? | | ?????????????????????# g #?????????? | | ????????????????????? ??????? | | ?????????????????????? #####?????? | | ??????????????????????? % ! ##"#### #?????????? | | ??????????????????????? ???? ???? ?????????? | | ??????????????????????????* ?????? ?????????? | | ????????????????????????? ??????? ?????????? | | ????????????????????????????????? #????????? | | ???????????????????????????????? #????????? | | ???????????????????????????????? # ##????????? | | ??????????????????????????????? % ? ?????????? | | ??????????????????????????????? ?" ?????????? | +----------------------------------------------------+ Best States ------------- Heat Dissipation 50 Energy Generation 14 Energy Capacity 280 Matter Stores 300 Matter Capacity 300 Sight Range 16 Robot Scan Range 10 Terrain Scan Density 10 Armor Coverage 300 Resistance: EM 15 Weapon Shielding 66 Evasion (%) 44 Targeting Accuracy 5 Recoil Reduction 5 Offensive Hacking 10 Defensive Hacking 10 Item Schematics ----------------- Hacking Suite | -9/Materials | Scanalyzed Imp. Assault Rifle | -9/Materials | Scanalyzed Robot Schematics ------------------ None Fabricated ------------ Nothing Alien Tech Used ----------------- None Achievements -------------- Exterminator Preemptive Strike Challenges ------------ None Game ------ Seed SegregatorDiametricWeb Manual? 0 Play Time 04:21:59 Cumulative 172.9 hours Start 2020.11.11 @ 11:40:52 End 2020.11.11 @ 18:34:03 Sessions 3 Manual Loads 0 Difficulty Rogue Special Mode Halloween2020/ForbiddenLore Game No. 64 Rogue 64 Adventurer 0 Explorer 0 Win Type - Total 0 Types 0/0/0/0/0/0/0/0/0 Lore% 21 Gallery% 24 Achievement% 22 Wizard Run 0 Options --------- ASCII 0 Keyboard 1 Movement Vi Keybinds 0 Fullscreen 1 Font 12/Terminus Map View 83x54 Tactical HUD 1 Map Filters NONE Filters NONE Steam 1 RUN: 3b8f1369-09d0-4b34-92e3-fd4fc92b257e